Cogmind - Beta 14 @@@ ROGUE MODE // 2024.11.03 @ 21:27:04 Player: AnotherZach Result: Destroyed by D-53 Grenadier with Mini Grenade Launcher Performance ------------- Evolutions (0) 0 Regions Visited (2) 400 Robots Destroyed (17) 85 Value Destroyed (329) 329 Prototype IDs (0) 0 Alien Tech Used (0) 0 Bonus (0) 0 TOTAL SCORE: 814 Bonus ------- None Cogmind --------- Core Integrity 0/250 Matter 300/300 Energy 100/100 System Corruption 0% Temperature Cool (0) Movement Core (50) Location -10/Mines Parts ------- > --- POWER (1) -------- (None) > --- PROPULSION (2) --- (None) > --- UTILITY (2) ------ (None) > --- WEAPON (2) ------- (None) > --- INVENTORY (5) ---- Flight Unit Flight Unit Huge Storage Unit Improved Terrain Scanner Datajack Peak State ------------ > --- POWER ------------ Ion Engine > --- PROPULSION ------- Light Treads Light Treads > --- UTILITY ---------- Small Storage Unit Structural Scanner > --- WEAPON ----------- Assault Rifle Grenade Launcher > --- INVENTORY -------- Flight Unit Flight Unit Improved Terrain Scanner Light Assault Rifle [Rating: 7] Favorites ----------- Power Ion Engine Engine Ion Engine Propulsion Light Treads Treads Light Treads Utility Structural Scanner Device Structural Scanner Storage Small Storage Unit Weapon Assault Rifle Ballistic Gun Assault Rifle Launcher Grenade Launcher Build | -11 -10 -10 ------- Run | Yrd Mat Min Slots Evolved . | . . . Power . | . . . Propulsion . | . . . Utility . | . . . Weapon . | . . . Parts Attached 10 | 5 5 . Power 1 | . 1 . Engine 1 | . 1 . Core . | . . . Reactor . | . . . Propulsion 2 | 2 . . Treads 2 | 2 . . Leg . | . . . Wheel . | . . . Hover . | . . . Flight . | . . . Utility 3 | 1 2 . Device 1 | . 1 . Storage 2 | 1 1 . Processor . | . . . Hackware . | . . . Protection . | . . . Artifact . | . . . Weapon 4 | 2 2 . Energy Gun . | . . . Energy Cannon . | . . . Ballistic Gun 3 | 2 1 . Ballistic Cannon . | . . . Launcher 1 | . 1 . Special Weapon . | . . . Impact Weapon . | . . . Slashing Weapon . | . . . Piercing Weapon . | . . . Special Melee Weapon . | . . . Unidentified Prototypes . | . . . Parts Lost 6 | . 1 5 Power 1 | . . 1 Propulsion 2 | . . 2 Utility 1 | . . 1 Weapon 2 | . 1 1 Highest Loss Streak 5 | . 1 5 To Critical Strikes . | . . . Average Slot Usage (%) 87 | . 86 91 Engine 10 | . 9 12 Treads 27 | . 28 25 Device 12 | . 11 12 Storage 10 | . 9 12 Ballistic Gun 23 | . 22 25 Launcher 3 | . 4 . Peak Build Rating 7 | 4 7 7 Average Rating 5 | 3 6 6 On Entrance 3 | . 4 7 Naked Turns 8 | . . 8 Heaviest Build 16 | 3 16 14 Greatest Support 40 | 3 40 40 Greatest Overweight (x) 1 | . 1 . Average Overweight (x) . | . . . Largest Inventory Capacity 8 | 8 8 8 Average Capacity 6 | 5 7 7 Most Carried 5 | 3 5 5 Average Carried 3 | 2 4 4 Final Capacity 8 | 5 8 5 Final Carried 5 | 3 4 5 Class Distribution -------------------- 100% | Mutant Dominant Class ---------------- Mutant | -10/Materials Mutant | -10/Mines Resources | -11 -10 -10 ----------- Run | Yrd Mat Min Matter Collected 499 | 302 118 79 Remotely . | . . . Salvage Created 376 | 152 224 . Parts 24 | 9 15 . Haulers Intercepted . | . . . Recyclers Shooed 1 | . 1 . Parts Field Recycled . | . . . Retrieved Matter . | . . . Parts Self-Destructed . | . . . Prevented . | . . . Kills | -11 -10 -10 ------- Run | Yrd Mat Min Combat Hostiles Destroyed 9 | . 9 . Guns 6 | . 6 . AOE 3 | . 3 . Classes Destroyed 6 | 2 4 . Builder 1 | . 1 . Tunneler 5 | 5 . . Recycler 1 | 1 . . Watcher 1 | . 1 . Swarmer 3 | . 3 . Grunt 6 | . 6 . Best Kill Streak 6 | 6 5 . Combat Bots Only 5 | . 5 . Max Kills in Single Turn 1 | 1 1 . Gunslinging . | . . . Exploded 1 | . 1 . Melee . | . . . Uniques/NPCs Destroyed . | . . . Combat | -11 -10 -10 -------- Run | Yrd Mat Min Hostile Shots Fired 49 | . 38 11 Missed 9 | . 9 . Damage Taken 850 | . 442 408 Core 261 | . 92 169 Absorbed by Shields . | . . . Core Remaining (%) 100 | 100 . . Volleys Fired 40 | 13 27 . Largest 2 | 2 2 . Hottest 50 | 40 50 . Shots Fired 79 | 26 53 . Gun 71 | 26 45 . Cannon . | . . . Launcher 8 | . 8 . Special . | . . . Kinetic 71 | 26 45 . Thermal . | . . . Explosive 8 | . 8 . Electromagnetic . | . . . Robot Hit Streak 13 | 8 13 . Robot Miss Streak 3 | 3 2 . Penetration Max . | . . . Secondary Targets 1 | . 1 . Max Gunslinging Chain 1 | . 1 . Shots Hit Robots 43 | 12 31 . Core Hits 30 | 8 22 . Critical Kills . | . . . Critical Parts Destroyed . | . . . Critical Strikes . | . . . Melee Attacks . | . . . Impact . | . . . Slashing . | . . . Piercing . | . . . Sneak Attacks . | . . . Combat Hostiles . | . . . Follow-up Attacks . | . . . Damage Inflicted 877 | 142 735 . Guns 445 | 142 303 . Cannons . | . . . Explosions 431 | . 431 . Melee . | . . . Ramming 1 | . 1 . Kinetic 445 | 142 303 . Thermal . | . . . Explosive 431 | . 431 . Electromagnetic . | . . . Impact . | . . . Slashing . | . . . Piercing . | . . . Highest Corruption . | . . . Average Corruption . | . . . Corruption Purged . | . . . Corruption Blocked . | . . . Overload Shots . | . . . Overflow Damage 6 | . 6 . Projectiles . | . . . Explosions 6 | . 6 . Melee . | . . . Knockbacks . | . . . Impact . | . . . Kinetic . | . . . Secondary . | . . . Self-Inflicted Damage 122 | . 122 . Shots 4 | . 4 . Rammed 1 | . 1 . Targets Rammed 1 | . 1 . Kicked . | . . . Crushed . | . . . Highest Temperature 27 | . 27 . Average Temperature 11 | . 11 . Received Heat Transfer 162 | . 150 12 Siege Activations . | . . . Robots Corrupted . | . . . Combat Hostiles . | . . . Parts Fried . | . . . Impact Corruptions . | . . . Robots Melted . | . . . Combat Hostiles . | . . . Parts Melted . | . . . Heat Transferred . | . . . Parts Sabotaged . | . . . Parts Stolen . | . . . Parts Stripped . | . . . Power Chain Reactions . | . . . Alert | -11 -10 -10 ------- Run | Yrd Mat Min Peak Influence 362 | 30 362 141 Initial 141 | . 19 141 Average 155 | 10 195 136 Maximum Alert Level 1 | . 1 . Low Security (%) 71 | 100 55 100 Level 1 28 | . 44 . Level 2 . | . . . Level 3 . | . . . Level 4 . | . . . Level 5 . | . . . High Security . | . . . Max Security . | . . . Squads Dispatched 2 | . 2 . Investigation . | . . . Extermination . | . . . Reinforcement 2 | . 2 . Assault . | . . . Garrison . | . . . Intercept . | . . . Searches Triggered . | . . . Construction Impeded . | . . . Haulers Reinforced . | . . . Active Scanning Responses . | . . . Cargo Convoy Interrupts . | . . . Stealth | -11 -10 -10 --------- Run | Yrd Mat Min Distress Signals 1 | . 1 . Communications Jammed . | . . . Distress Signals . | . . . Times Spotted 17 | . 14 3 Peak Tracking Total 5 | . 5 4 Tactical Retreats . | . . . Traps | -11 -10 -10 ------- Run | Yrd Mat Min Traps Triggered . | . . . Indirectly . | . . . Trap Hack Attempts . | . . . Triggered . | . . . Disarmed . | . . . Reprogrammed . | . . . Reused . | . . . Traps Extracted . | . . . Installed . | . . . Triggered . | . . . Machines | -11 -10 -10 ---------- Run | Yrd Mat Min Machines Disabled 2 | . 2 . Max in Single Turn 1 | . 1 . Machines Repaired . | . . . Machines Dismantled . | . . . Machines Sabotaged . | . . . Overloaded Fab Kills . | . . . Hacking | -11 -10 -10 --------- Run | Yrd Mat Min Machines Accessed 1 | . 1 . Terminals 1 | . 1 . Fabricators . | . . . Repair Stations . | . . . Recycling Units . | . . . Scanalyzers . | . . . Garrison Access . | . . . Total Hacks 3 | . 3 . Successful 1 | . 1 . Failed 2 | . 2 . Catastrophic . | . . . Database Lockouts . | . . . Manual 3 | . 3 . Terminals 3 | . 3 . Fabricators . | . . . Repair Stations . | . . . Recycling Units . | . . . Scanalyzers . | . . . Garrison Access . | . . . Terminal Hacks 1 | . 1 . Robot Schematic 1 | . 1 . Fabricator Hacks . | . . . Repair Station Hacks . | . . . Recycling Unit Hacks . | . . . Scanalyzer . | . . . Garrison Access Hacks . | . . . Unauthorized Hacks . | . . . Terminals . | . . . Fabricators . | . . . Repair Stations . | . . . Recycling Units . | . . . Scanalyzers . | . . . Garrison Access . | . . . Data Cores Recovered . | . . . Used . | . . . Hacking Detections 1 | . 1 . Full Trace Events 1 | . 1 . Feedback Events . | . . . Feedback Blocked . | . . . Robot Schematics Acquired 1 | . 1 . Robots Built . | . . . Authchips . | . . . Time . | . . . Total Robot Build Rating . | . . . Part Schematics Acquired . | . . . Parts Built . | . . . Authchips . | . . . Time . | . . . Total Part Build Rating . | . . . Parts Repaired . | . . . Time . | . . . Parts Recycled . | . . . Recycled Matter . | . . . Retrieved Matter . | . . . Retrieved Components . | . . . Parts Scanalyzed . | . . . Part Schematics Acquired . | . . . Parts Damaged . | . . . Bothacking | -11 -10 -10 ------------ Run | Yrd Mat Min Used RIF Installer . | . . . Robots Hacked . | . . . Non-combat . | . . . Combat . | . . . Robot Hacks Applied . | . . . Relay Couplers Released . | . . . Fabnet Peak Effective % . | . . . Robots Rewired . | . . . Allies Hacked . | . . . Hacks Repelled . | . . . Allies | -11 -10 -10 -------- Run | Yrd Mat Min Total Allies 3 | . . 3 Largest Group 3 | . . 3 Highest-Rated Group 40 | . . 40 Highest-Rated Ally 16 | . . 16 Total Orders . | . . . Ally Attacks . | . . . Total Damage . | . . . Kills . | . . . Allies Corrupted . | . . . Allies Melted . | . . . Intel | -11 -10 -10 ------- Run | Yrd Mat Min Robot Analysis Total . | . . . Derelict Logs Recovered . | . . . Drone Launches . | . . . Drone Recoveries . | . . . Exploration | -11 -10 -10 ------------- Run | Yrd Mat Min Turns Passed 536 | 79 339 118 Spaces Moved 293 | 60 143 90 Core 129 | 60 43 26 Treads 164 | . 100 64 Legs . | . . . Wheels . | . . . Hover . | . . . Flight . | . . . Fastest Speed 50 | 50 50 50 Average Speed 111 | 50 127 128 Slowest Speed 160 | 50 160 160 Overloaded Moves . | . . . Propulsion Burnouts . | . . . Robots Hopped . | . . . Cave-ins Triggered . | . . . Exploration Rate (%) 25 | 3 37 36 Regions Visited 2 Branch Regions 1 Pre-discovered Areas . | . . . Known Exits Taken . | . . . Unknown Exits Taken 2 | 1 1 . Scrap Searched 1 | . . 1 Spaces Dug 11 | . 11 . Terrain Destroyed 37 | . 37 . Melee . | . . . Projectile . | . . . AOE 37 | . 37 . Terrain Rammed . | . . . Walls Destroyed . | . . . Machines Disabled . | . . . Actions | -11 -10 -10 --------- Run | Yrd Mat Min Total 427 | 84 250 93 Wait 72 | 2 70 . Move 292 | 59 143 90 Hop . | . . . Pick Up 9 | 4 4 1 Fast Attach 4 | 3 1 . Attach 6 | 2 4 . Detach 2 | 1 1 . Swap . | . . . Drop 2 | . . 2 Fire 40 | 13 27 . Melee . | . . . Ram . | . . . Kick . | . . . Crush . | . . . Escape Stasis . | . . . Rewire . | . . . Trap . | . . . Miscellaneous . | . . . Route ------- -11/Scrapyard -10/Materials -10/Mines History --------- Turn | Location | Event 6 | -11/Scrapyard | Discovered new exit (range 14) 80 | -11/Scrapyard | Entered Materials 317 | -10/Materials | Build established: Mutant 394 | -10/Materials | Discovered new exit (range 12) 419 | -10/Materials | Entered Mines 440 | -10/Mines | Met a Derelict bent on vengeance 502 | -10/Mines | Assembled infested the area 524 | -10/Mines | Core integrity fell below 50% 530 | -10/Mines | Core integrity fell below 20% 534 | -10/Mines | Assisted by bots powering up and referring to "LRC-V3" 537 | -10/Mines | Destroyed by D-53 Grenadier with Mini Grenade Launcher Last Messages --------------- 00523_ Dropped Assault Rifle. 00524_ U-05 Engineer lays Concrete. 00525_ Lgt. Treads destroyed. 00526_ U-05 Engineer lays Concrete. 00527_ R-06 Scavenger destroyed. 00528_ U-05 Engineer lays Concrete. 00528_ K-01 Serf collects debris. 00529_ Plasma Injector explodes. 00529_ Lgt. Assault Rifle destroyed. 00529_ Structural Scanner destroyed. 00529_ U-05 Engineer lays Concrete. 00531_ K-01 Serf collects debris. 00531_ as-65357 destroyed. 00531_ K-01 Serf collects debris. 00534_ Trooper 1a: "Hello LRC-V3. What is your command?" 00534_ Mercenary 1a: "Hello LRC-V3. What is your command?" 00534_ Trooper 1b: "Hello LRC-V3. What is your command?" 00535_ K-01 Serf collects debris. 00536_ The unstable cave ceiling collapses. Map ----- +----------------------------------------------------+ | | | | | | | | | | | | | | | | | | | ????????????????????????????????????????????????? | | ????????????????????????????????????????????????? | | ????????????????????????????????????????????????? | | ????????????????????????????????????????????????? | | ????????????????????????????????????????????????? | | ????????????????????????????????????????????????? | | ????????????????????????????????????????????????? | | ????????????????????????????????????????????????? | | ???????????? ???????????????????????? ?????????? | | ??????????? ?????????????????????? $?????????? | | ??????????? ??????#####??##????? #?????????? | | ??????????? #????# #?# ##???? ##?????????? | | ?????????? ??# ## #??? ##?????????? | | ?????????# ##g gg ##### ###????????? | | ?????????# # ###### ###????????? | | ????????? ### ###???????? | | ????????? @ #### ###???????? | | ????????? ## k # "##???????? | | ?????????? ?????## t "##???????? | | ?????????????????### "##???????? | | ???????????????????## "##???????? | | ????????????????????## # ""###???????? | | ????????????????????### ####???????? | | ????????????????????### d ###????????? | | ?????????????????? ###???????? | | ?????????????????? %= ####??????? | | ?????????????????? ###r ! ###??????? | | ?????????????????# ### ## ##??????? | | ??????????????????? ### ###??????? | | ??????????????????? ##### ########? | | ??????????????????? ##?## % #########? | | ??????????????????? k ???## ##? | | ????????????????????? ??### [ ######%##? | | ?????######????????????? ???### ##### ? | | ?????#######???????????????### ###??????? | | ?????## ##???????????????### ######??????? | | ?????## #???????????????## #####???????? | | ?????## ##??????????????## ###??????????? | | ?????## ###?????????????### ####??????????? | | ???????? ####???#######?### ######???????????? | | ????????## ################# #####????????????? | +----------------------------------------------------+ Best States ------------- Heat Dissipation 25 Energy Generation 10 Energy Capacity 250 Matter Stores 300 Matter Capacity 300 Sight Range 16 Terrain Scan Density 10 Evasion (%) 50 Recoil Reduction 2 Item Schematics ----------------- None Robot Schematics ------------------ M-13 Machinist | -10/Materials | Hacked Fabricated ------------ Nothing Alien Tech Used ----------------- None Achievements -------------- None Challenges ------------ None Game ------ Seed MicroCryofiberCoupler Manual? 0 Play Time 00:05:44 Cumulative 702.4 hours Start 2024.11.03 @ 21:22:11 End 2024.11.03 @ 21:27:04 Sessions 1 Manual Loads 0 Difficulty Rogue Special Mode None Game No. 150 Rogue 12 Adventurer 138 Explorer 0 Win Type - Total 11 Types 7/0/1/2/0/0/0/0/1 Lore% 78 Gallery% 84 Achievement% 76 Wizard Run 0 Options --------- Layout 1 ASCII 0 Keyboard 0 Movement Mouse Keybinds 0 Fullscreen 0 Font 18/SmallcapsGlow Map View 59x46 Zoom Use 0% Tactical HUD 1 Map Filters NONE Filters NONE Steam 1 RUN: cd0833c0-1ae5-4fcf-a0f3-f76e3a6593b4